[Event "*** Titled Tuesday Blitz"]
[Site "Chess.com"]
[Date "2020.10.27"]
[Round "11"]
[White "GukeshDommaraju"]
[Black "ENajer77"]
[Result "1-0"]
[WhiteElo "2835"]
[BlackElo "2697"]
[TimeControl "180+1"]
[EndTime "12:04:09 PDT"]
[Termination "GukeshDommaraju won by resignation"]

1. e4 {[%clk 0:03:00.9]} 1... c6 {[%clk 0:02:00.4]} 2. d4 {[%clk 0:03:00]} 2...
d5 {[%clk 0:02:00.4]} 3. Nc3 {[%clk 0:02:58.7]} 3... dxe4 {[%clk 0:02:00.3]} 4.
Nxe4 {[%clk 0:02:58.8]} 4... Bf5 {[%clk 0:02:00.9]} 5. Ng3 {[%clk 0:02:57.7]}
5... Bg6 {[%clk 0:02:01.2]} 6. Bc4 {[%clk 0:02:52.2]} 6... e6 {[%clk 0:01:59.3]}
7. N1e2 {[%clk 0:02:48.3]} 7... Bd6 {[%clk 0:01:58.6]} 8. Nf4 {[%clk 0:02:42.4]}
8... Nf6 {[%clk 0:01:57.3]} 9. h4 {[%clk 0:02:41.9]} 9... Bxf4 {[%clk
0:01:55.6]} 10. Bxf4 {[%clk 0:02:41.7]} 10... h6 {[%clk 0:01:56.5]} 11. h5
{[%clk 0:02:40.1]} 11... Bh7 {[%clk 0:01:54.6]} 12. Qd2 {[%clk 0:02:26.5]} 12...
Nd5 {[%clk 0:01:47]} 13. Be5 {[%clk 0:02:22.7]} 13... O-O {[%clk 0:01:46.4]} 14.
O-O-O {[%clk 0:02:19]} 14... b5 {[%clk 0:01:43.8]} 15. Bd3 {[%clk 0:02:14.6]}
15... Bxd3 {[%clk 0:01:41.8]} 16. Qxd3 {[%clk 0:02:15.5]} 16... Nd7 {[%clk
0:01:22.2]} 17. Ne4 {[%clk 0:02:09.3]} 17... c5 {[%clk 0:01:02]} 18. Qg3 {[%clk
0:01:55.9]} 18... Nxe5 {[%clk 0:00:55.1]} 19. dxe5 {[%clk 0:01:55.1]} 19... Qe7
{[%clk 0:00:49.6]} 20. Rh4 {[%clk 0:01:40.4]} 20... Kh8 {[%clk 0:00:40]} 21. Rg4
{[%clk 0:01:23]} 21... Rg8 {[%clk 0:00:40.1]} 22. Nd6 {[%clk 0:01:16.6]} 22...
f5 {[%clk 0:00:26.6]} 23. Rg6 {[%clk 0:01:11.9]} 23... Nf6 {[%clk 0:00:27.5]}
24. exf6 {[%clk 0:01:09.1]} 1-0

[Event "*** Titled Tuesday Blitz"]
[Site "Chess.com"]
[Date "2020.10.27"]
[Round "11"]
[White "LileKoridze"]
[Black "Fortitudine"]
[Result "0-1"]
[WhiteElo "2367"]
[BlackElo "2296"]
[TimeControl "180+1"]
[EndTime "12:04:11 PDT"]
[Termination "Fortitudine won by resignation"]

1. d4 {[%clk 0:03:00.9]} 1... Nf6 {[%clk 0:02:59.4]} 2. c4 {[%clk 0:03:01.2]}
2... c5 {[%clk 0:02:59.5]} 3. d5 {[%clk 0:03:01.2]} 3... b5 {[%clk 0:02:59.5]}
4. cxb5 {[%clk 0:03:01.2]} 4... a6 {[%clk 0:02:59.6]} 5. bxa6 {[%clk 0:03:01.4]}
5... g6 {[%clk 0:03:00.1]} 6. Nc3 {[%clk 0:03:01.8]} 6... Bg7 {[%clk 0:03:00.4]}
7. e4 {[%clk 0:03:01.1]} 7... O-O {[%clk 0:03:00.7]} 8. e5 {[%clk 0:02:58.2]}
8... Ne8 {[%clk 0:03:00.8]} 9. Nf3 {[%clk 0:02:58.7]} 9... Nc7 {[%clk
0:03:00.3]} 10. Bc4 {[%clk 0:02:56.6]} 10... d6 {[%clk 0:02:59.5]} 11. exd6
{[%clk 0:02:54.9]} 11... exd6 {[%clk 0:02:59.2]} 12. O-O {[%clk 0:02:55.1]}
12... Bxa6 {[%clk 0:02:50.5]} 13. Bxa6 {[%clk 0:02:53.8]} 13... Nbxa6 {[%clk
0:02:50.5]} 14. Bg5 {[%clk 0:02:49.5]} 14... Qd7 {[%clk 0:02:47.8]} 15. Ne4
{[%clk 0:02:44.4]} 15... f5 {[%clk 0:02:44.2]} 16. Nc3 {[%clk 0:02:41.8]} 16...
Rfe8 {[%clk 0:02:29.1]} 17. a3 {[%clk 0:02:39.3]} 17... Nb5 {[%clk 0:02:25.4]}
18. Qd3 {[%clk 0:02:27.9]} 18... Nxc3 {[%clk 0:02:24.3]} 19. bxc3 {[%clk
0:02:27.8]} 19... Nc7 {[%clk 0:02:17.7]} 20. h3 {[%clk 0:02:21.1]} 20... Qb5
{[%clk 0:02:15]} 21. Qc2 {[%clk 0:02:19.3]} 21... Qa4 {[%clk 0:02:11.7]} 22. Qd3
{[%clk 0:02:14]} 22... Qe4 {[%clk 0:02:08.9]} 23. Rfd1 {[%clk 0:02:13.2]} 23...
Qxd3 {[%clk 0:02:07.7]} 24. Rxd3 {[%clk 0:02:13.4]} 24... Nb5 {[%clk 0:02:02.5]}
25. Rb1 {[%clk 0:02:09.4]} 25... Nxa3 {[%clk 0:02:01]} 26. Rb7 {[%clk
0:02:07.3]} 26... Nc4 {[%clk 0:01:56.7]} 27. Be7 {[%clk 0:01:54.8]} 27... Rab8
{[%clk 0:01:44.1]} 28. Rd7 {[%clk 0:01:49.5]} 28... Nb6 {[%clk 0:01:35.6]} 29.
Rc7 {[%clk 0:01:46.3]} 29... Nc4 {[%clk 0:01:30.8]} 30. Ng5 {[%clk 0:01:22.3]}
30... Rb1+ {[%clk 0:01:28.9]} 31. Kh2 {[%clk 0:01:22]} 31... Be5+ {[%clk
0:01:20.6]} 32. g3 {[%clk 0:01:21.2]} 32... f4 {[%clk 0:01:20.5]} 33. Kg2 {[%clk
0:01:12.8]} 33... fxg3 {[%clk 0:01:20.1]} 34. fxg3 {[%clk 0:01:13]} 34... Rb2+
{[%clk 0:01:19.7]} 35. Kf1 {[%clk 0:01:03.4]} 35... Ra8 {[%clk 0:01:12.2]} 36.
Rd1 {[%clk 0:00:56.2]} 36... Ne3+ {[%clk 0:01:12.3]} 37. Ke1 {[%clk 0:00:56.4]}
37... Nxd1 {[%clk 0:01:05.6]} 0-1

[Event "*** Titled Tuesday Blitz"]
[Site "Chess.com"]
[Date "2020.10.27"]
[Round "11"]
[White "WPWPWP-2015"]
[Black "MF1966Idrisov"]
[Result "1/2-1/2"]
[WhiteElo "2479"]
[BlackElo "2353"]
[TimeControl "180+1"]
[EndTime "12:04:12 PDT"]
[Termination "Game drawn by repetition"]

1. e4 {[%clk 0:03:00]} 1... d6 {[%clk 0:02:58.1]} 2. d4 {[%clk 0:02:58.9]} 2...
Nf6 {[%clk 0:02:55.5]} 3. Nc3 {[%clk 0:02:53.5]} 3... Nbd7 {[%clk 0:02:53.1]} 4.
a4 {[%clk 0:02:49.6]} 4... e5 {[%clk 0:02:52.1]} 5. Nge2 {[%clk 0:02:46.8]} 5...
Be7 {[%clk 0:02:50.9]} 6. h3 {[%clk 0:02:46.5]} 6... Nf8 {[%clk 0:02:46]} 7. a5
{[%clk 0:02:45.4]} 7... a6 {[%clk 0:02:45.2]} 8. Be3 {[%clk 0:02:43.2]} 8... Ng6
{[%clk 0:02:44.3]} 9. Ng3 {[%clk 0:02:37.2]} 9... O-O {[%clk 0:02:42.8]} 10. Bc4
{[%clk 0:02:36.4]} 10... Nf4 {[%clk 0:02:39.7]} 11. O-O {[%clk 0:02:34.9]} 11...
Be6 {[%clk 0:02:30.4]} 12. Bxe6 {[%clk 0:02:30.5]} 12... fxe6 {[%clk 0:02:30.1]}
13. dxe5 {[%clk 0:02:30]} 13... dxe5 {[%clk 0:02:27.1]} 14. Qxd8 {[%clk
0:02:21.6]} 14... Rfxd8 {[%clk 0:02:26.1]} 15. Rfd1 {[%clk 0:02:19.7]} 15... Kf7
{[%clk 0:02:24.4]} 16. f3 {[%clk 0:02:14.2]} 16... Nd7 {[%clk 0:02:11.8]} 17.
Nge2 {[%clk 0:02:06.8]} 17... Nxe2+ {[%clk 0:02:03.8]} 18. Nxe2 {[%clk
0:02:06.2]} 18... Ke8 {[%clk 0:02:02.8]} 19. Kf2 {[%clk 0:01:55.9]} 19... Bc5
{[%clk 0:02:00.6]} 20. Rd3 {[%clk 0:01:48.3]} 20... Bxe3+ {[%clk 0:01:59.7]} 21.
Kxe3 {[%clk 0:01:47.9]} 21... Nc5 {[%clk 0:01:58.1]} 22. Rc3 {[%clk 0:01:47.6]}
22... b6 {[%clk 0:01:57.5]} 23. b4 {[%clk 0:01:41.2]} 23... Nd7 {[%clk
0:01:56.4]} 24. Rxc7 {[%clk 0:01:38]} 24... bxa5 {[%clk 0:01:56.1]} 25. Rxa5
{[%clk 0:01:34.2]} 25... Rdc8 {[%clk 0:01:55.7]} 26. Rxa6 {[%clk 0:01:29.1]}
26... Rcb8 {[%clk 0:01:39.3]} 27. Rxa8 {[%clk 0:01:20.3]} 27... Rxa8 {[%clk
0:01:38.9]} 28. Rc6 {[%clk 0:01:20]} 28... Ke7 {[%clk 0:01:38.6]} 29. c3 {[%clk
0:01:18.9]} 29... Ra2 {[%clk 0:01:32.1]} 30. h4 {[%clk 0:01:17.5]} 30... h6
{[%clk 0:01:31.2]} 31. h5 {[%clk 0:01:16.6]} 31... Ra1 {[%clk 0:01:30]} 32. g4
{[%clk 0:01:15.9]} 32... Ra3 {[%clk 0:01:19.2]} 33. Kd3 {[%clk 0:01:13.2]} 33...
Nb8 {[%clk 0:01:18.8]} 34. Rb6 {[%clk 0:01:08.8]} 34... Nd7 {[%clk 0:01:18.3]}
35. Rc6 {[%clk 0:01:07.9]} 35... Nb8 {[%clk 0:01:17.9]} 36. Rc8 {[%clk
0:01:07.2]} 36... Nd7 {[%clk 0:01:15.5]} 37. Ke3 {[%clk 0:00:51]} 37... Nb6
{[%clk 0:01:13.9]} 38. Rc6 {[%clk 0:00:47.9]} 38... Nd7 {[%clk 0:01:13]} 39. Kd3
{[%clk 0:00:47.1]} 1/2-1/2

[Event "*** Titled Tuesday Blitz"]
[Site "Chess.com"]
[Date "2020.10.27"]
[Round "11"]
[White "alexwinter25"]
[Black "TudorAnton"]
[Result "0-1"]
[WhiteElo "2321"]
[BlackElo "2486"]
[TimeControl "180+1"]
[EndTime "12:04:17 PDT"]
[Termination "TudorAnton won by resignation"]

1. e4 {[%clk 0:03:00.9]} 1... c5 {[%clk 0:02:59.3]} 2. Nf3 {[%clk 0:03:00.1]}
2... Nc6 {[%clk 0:02:58.6]} 3. d4 {[%clk 0:03:00.4]} 3... cxd4 {[%clk
0:02:56.3]} 4. c3 {[%clk 0:03:01]} 4... Nf6 {[%clk 0:02:55.1]} 5. Bd3 {[%clk
0:02:57.2]} 5... dxc3 {[%clk 0:02:52.9]} 6. Nxc3 {[%clk 0:02:58.1]} 6... e6
{[%clk 0:02:53.4]} 7. O-O {[%clk 0:02:56.4]} 7... d5 {[%clk 0:02:52.5]} 8. exd5
{[%clk 0:02:55.8]} 8... Nxd5 {[%clk 0:02:53.4]} 9. Qe2 {[%clk 0:02:47.2]} 9...
Nxc3 {[%clk 0:02:52.3]} 10. bxc3 {[%clk 0:02:48.1]} 10... Qa5 {[%clk 0:02:52.5]}
11. Bd2 {[%clk 0:02:15.8]} 11... Bc5 {[%clk 0:02:48.5]} 12. Rab1 {[%clk
0:02:02.8]} 12... Qxa2 {[%clk 0:02:45]} 13. Bc4 {[%clk 0:01:50.7]} 13... Qc2
{[%clk 0:02:43.7]} 14. Bd3 {[%clk 0:01:46.5]} 14... Qa4 {[%clk 0:02:40.5]} 15.
Rb5 {[%clk 0:01:43.3]} 15... Be7 {[%clk 0:02:37.2]} 16. Ne5 {[%clk 0:01:32.9]}
16... Nxe5 {[%clk 0:02:29.5]} 17. Qxe5 {[%clk 0:01:33.8]} 17... Bd7 {[%clk
0:02:28.4]} 18. Rxb7 {[%clk 0:01:30.2]} 18... O-O {[%clk 0:02:22.7]} 19. c4
{[%clk 0:01:13.5]} 19... Bf6 {[%clk 0:02:19.4]} 20. Qh5 {[%clk 0:01:12.5]} 20...
g6 {[%clk 0:02:18.7]} 21. Qh3 {[%clk 0:01:10]} 21... Bc6 {[%clk 0:02:17.3]} 22.
Rb4 {[%clk 0:00:59.8]} 22... Qa3 {[%clk 0:02:16.1]} 23. Rfb1 {[%clk 0:00:53.4]}
23... Rad8 {[%clk 0:02:13.8]} 24. R4b3 {[%clk 0:00:44.9]} 24... Qa2 {[%clk
0:02:13.5]} 25. Bh6 {[%clk 0:00:42.2]} 25... Rfe8 {[%clk 0:02:10.4]} 26. Qe3
{[%clk 0:00:36.1]} 26... Bd4 {[%clk 0:02:08.2]} 27. Qg3 {[%clk 0:00:35.2]} 27...
Qa5 {[%clk 0:01:59.4]} 28. Bf1 {[%clk 0:00:35]} 28... Qc5 {[%clk 0:01:58.5]} 29.
Bg5 {[%clk 0:00:34.4]} 29... f6 {[%clk 0:01:57.3]} 30. Be3 {[%clk 0:00:32.6]}
30... Bxe3 {[%clk 0:01:56.7]} 31. Rxe3 {[%clk 0:00:33.5]} 31... e5 {[%clk
0:01:56.3]} 32. Qh4 {[%clk 0:00:27.1]} 32... Kg7 {[%clk 0:01:55.7]} 33. Rh3
{[%clk 0:00:26.4]} 33... h5 {[%clk 0:01:55.4]} 34. Rg3 {[%clk 0:00:26]} 34... e4
{[%clk 0:01:48.5]} 35. Ra1 {[%clk 0:00:21]} 35... Re5 {[%clk 0:01:46.6]} 36. Qf4
{[%clk 0:00:18.8]} 36... Rf5 {[%clk 0:01:41.1]} 37. Qc7+ {[%clk 0:00:18]} 37...
Rd7 {[%clk 0:01:40.8]} 38. Qc8 {[%clk 0:00:17.5]} 38... Qxf2+ {[%clk 0:01:40.3]}
39. Kh1 {[%clk 0:00:14.1]} 39... Qxf1+ {[%clk 0:01:41.2]} 0-1

[Event "*** Titled Tuesday Blitz"]
[Site "Chess.com"]
[Date "2020.10.27"]
[Round "11"]
[White "SanchezKelvin"]
[Black "Kazmin_Dmitrij"]
[Result "1-0"]
[WhiteElo "2377"]
[BlackElo "2270"]
[TimeControl "180+1"]
[EndTime "12:04:17 PDT"]
[Termination "SanchezKelvin won by resignation"]

1. e4 {[%clk 0:03:00.9]} 1... e5 {[%clk 0:02:57.4]} 2. Nf3 {[%clk 0:03:00.4]}
2... d6 {[%clk 0:02:57.4]} 3. d4 {[%clk 0:02:59.5]} 3... exd4 {[%clk 0:02:56.9]}
4. Nxd4 {[%clk 0:02:59.3]} 4... Nf6 {[%clk 0:02:57]} 5. Nc3 {[%clk 0:02:59.5]}
5... Be7 {[%clk 0:02:57.3]} 6. h3 {[%clk 0:02:54.6]} 6... O-O {[%clk 0:02:56.5]}
7. g4 {[%clk 0:02:53.9]} 7... d5 {[%clk 0:02:47.1]} 8. e5 {[%clk 0:02:53.1]}
8... Ne4 {[%clk 0:02:45]} 9. Bg2 {[%clk 0:02:52.3]} 9... Nxc3 {[%clk 0:02:40.8]}
10. bxc3 {[%clk 0:02:51.7]} 10... Nc6 {[%clk 0:02:12.8]} 11. Nxc6 {[%clk
0:02:47.2]} 11... bxc6 {[%clk 0:02:12.9]} 12. O-O {[%clk 0:02:48.1]} 12... Rb8
{[%clk 0:02:04.4]} 13. Be3 {[%clk 0:02:42.9]} 13... a5 {[%clk 0:01:54.5]} 14. f4
{[%clk 0:02:34.6]} 14... Ba6 {[%clk 0:01:53.4]} 15. Rf3 {[%clk 0:02:25.1]} 15...
Bc4 {[%clk 0:01:51.7]} 16. Qd2 {[%clk 0:02:13.2]} 16... a4 {[%clk 0:01:24.5]}
17. f5 {[%clk 0:02:07.3]} 17... f6 {[%clk 0:01:22.6]} 18. exf6 {[%clk
0:02:02.3]} 18... Bxf6 {[%clk 0:01:21.5]} 19. Bf1 {[%clk 0:01:50.3]} 19... Bxf1
{[%clk 0:01:19.1]} 20. Raxf1 {[%clk 0:01:49.6]} 20... Rb2 {[%clk 0:01:12.2]} 21.
g5 {[%clk 0:01:47.6]} 21... Be5 {[%clk 0:01:09.5]} 22. f6 {[%clk 0:01:37.7]}
22... Rxa2 {[%clk 0:00:55.7]} 23. Bc5 {[%clk 0:01:27.3]} 23... g6 {[%clk
0:00:35.4]} 24. f7+ {[%clk 0:01:22]} 24... Kg7 {[%clk 0:00:34.7]} 25. Bd4 {[%clk
0:01:14.6]} 25... Qd6 {[%clk 0:00:27.3]} 26. Qe3 {[%clk 0:01:12]} 1-0

[Event "*** Titled Tuesday Blitz"]
[Site "Chess.com"]
[Date "2020.10.27"]
[Round "11"]
[White "Bastiandash"]
[Black "chesstrainer2042"]
[Result "0-1"]
[WhiteElo "2327"]
[BlackElo "2422"]
[TimeControl "180+1"]
[EndTime "12:04:22 PDT"]
[Termination "chesstrainer2042 won on time"]

1. b3 {[%clk 0:03:00.9]} 1... e5 {[%clk 0:02:12.1]} 2. Bb2 {[%clk 0:02:52.8]}
2... Nc6 {[%clk 0:02:12.5]} 3. Nf3 {[%clk 0:02:52.9]} 3... e4 {[%clk 0:02:05]}
4. Nd4 {[%clk 0:02:52.8]} 4... Qf6 {[%clk 0:02:02.8]} 5. e3 {[%clk 0:02:48.6]}
5... Nxd4 {[%clk 0:02:02.6]} 6. Bxd4 {[%clk 0:02:48.7]} 6... Qg6 {[%clk
0:02:03.1]} 7. g3 {[%clk 0:02:33.9]} 7... d5 {[%clk 0:02:00.3]} 8. d3 {[%clk
0:02:31]} 8... Bb4+ {[%clk 0:01:54.5]} 9. Bc3 {[%clk 0:02:15.3]} 9... Bd6 {[%clk
0:01:47]} 10. Bg2 {[%clk 0:01:52]} 10... Nf6 {[%clk 0:01:36.4]} 11. Nd2 {[%clk
0:01:46.8]} 11... O-O {[%clk 0:01:34.9]} 12. Bxf6 {[%clk 0:01:26.5]} 12... Qxf6
{[%clk 0:01:34.7]} 13. dxe4 {[%clk 0:01:26.4]} 13... dxe4 {[%clk 0:01:34.5]} 14.
Nxe4 {[%clk 0:01:22.7]} 14... Bb4+ {[%clk 0:01:33]} 15. Kf1 {[%clk 0:01:22.3]}
15... Qe7 {[%clk 0:01:33.3]} 16. c3 {[%clk 0:00:52.7]} 16... Ba5 {[%clk
0:01:32.4]} 17. b4 {[%clk 0:00:44.4]} 17... Bb6 {[%clk 0:01:32]} 18. Qf3 {[%clk
0:00:33.4]} 18... Bd7 {[%clk 0:01:29.8]} 19. Qf4 {[%clk 0:00:29.9]} 19... a5
{[%clk 0:01:25.9]} 20. a3 {[%clk 0:00:09.8]} 20... Rfd8 {[%clk 0:01:17.3]} 21.
h4 {[%clk 0:00:02.7]} 21... Bc6 {[%clk 0:01:13.7]} 0-1

[Event "*** Titled Tuesday Blitz"]
[Site "Chess.com"]
[Date "2020.10.27"]
[Round "11"]
[White "Msb2"]
[Black "RD4ever"]
[Result "0-1"]
[WhiteElo "2908"]
[BlackElo "2846"]
[TimeControl "180+1"]
[EndTime "12:04:24 PDT"]
[Termination "RD4ever won by resignation"]

1. d4 {[%clk 0:03:00.9]} 1... d5 {[%clk 0:02:54.9]} 2. c4 {[%clk 0:03:00.6]}
2... e6 {[%clk 0:02:54.8]} 3. Nc3 {[%clk 0:03:00.8]} 3... c5 {[%clk 0:02:54.9]}
4. cxd5 {[%clk 0:03:00.3]} 4... exd5 {[%clk 0:02:55.8]} 5. Nf3 {[%clk
0:03:00.3]} 5... Nc6 {[%clk 0:02:55.8]} 6. dxc5 {[%clk 0:03:01]} 6... Nf6 {[%clk
0:02:55.4]} 7. Be3 {[%clk 0:02:54.8]} 7... Be6 {[%clk 0:02:54.5]} 8. g3 {[%clk
0:02:46]} 8... Rc8 {[%clk 0:02:53.3]} 9. Bg2 {[%clk 0:02:45.2]} 9... Ng4 {[%clk
0:02:52.4]} 10. Bd4 {[%clk 0:02:41.9]} 10... Nxd4 {[%clk 0:02:50.5]} 11. Nxd4
{[%clk 0:02:42.8]} 11... Bxc5 {[%clk 0:02:50.3]} 12. O-O {[%clk 0:02:25.7]}
12... O-O {[%clk 0:02:48.8]} 13. e3 {[%clk 0:02:20.8]} 13... Ne5 {[%clk
0:02:33.5]} 14. Rc1 {[%clk 0:02:09.1]} 14... Bg4 {[%clk 0:02:27.4]} 15. Qa4
{[%clk 0:01:57.7]} 15... Bxd4 {[%clk 0:01:57.6]} 16. Qxd4 {[%clk 0:01:58.6]}
16... Nf3+ {[%clk 0:01:57.7]} 17. Bxf3 {[%clk 0:01:56.4]} 17... Bxf3 {[%clk
0:01:58.6]} 18. Qf4 {[%clk 0:01:51.6]} 18... Qf6 {[%clk 0:01:17.9]} 19. Qxf6
{[%clk 0:01:51]} 19... gxf6 {[%clk 0:01:18.8]} 20. g4 {[%clk 0:01:51.9]} 20...
h5 {[%clk 0:01:07.7]} 21. h3 {[%clk 0:01:44.7]} 21... hxg4 {[%clk 0:01:02.7]}
22. hxg4 {[%clk 0:01:45.6]} 22... Rc4 {[%clk 0:01:03.4]} 23. Kh2 {[%clk
0:01:44.2]} 23... d4 {[%clk 0:00:43.9]} 24. Ne4 {[%clk 0:01:09.7]} 24... Rxc1
{[%clk 0:00:32.8]} 25. Nxf6+ {[%clk 0:01:10]} 25... Kg7 {[%clk 0:00:25.2]} 26.
Nh5+ {[%clk 0:01:09.3]} 26... Kh6 {[%clk 0:00:25.7]} 27. Rxc1 {[%clk 0:01:09.6]}
27... d3 {[%clk 0:00:26.2]} 0-1

[Event "*** Titled Tuesday Blitz"]
[Site "Chess.com"]
[Date "2020.10.27"]
[Round "11"]
[White "garfio2017"]
[Black "reniite"]
[Result "1-0"]
[WhiteElo "2245"]
[BlackElo "1942"]
[TimeControl "180+1"]
[EndTime "12:04:28 PDT"]
[Termination "garfio2017 won by resignation"]

1. e4 {[%clk 0:03:00]} 1... e5 {[%clk 0:02:56.3]} 2. Nf3 {[%clk 0:02:59.5]} 2...
Nc6 {[%clk 0:02:49.7]} 3. d4 {[%clk 0:02:59.6]} 3... exd4 {[%clk 0:02:29.7]} 4.
Nxd4 {[%clk 0:02:56.8]} 4... Nf6 {[%clk 0:02:28.7]} 5. Nxc6 {[%clk 0:02:53.7]}
5... bxc6 {[%clk 0:02:28.2]} 6. Bd3 {[%clk 0:02:50.4]} 6... d5 {[%clk
0:02:27.3]} 7. e5 {[%clk 0:02:50.7]} 7... Nd7 {[%clk 0:02:21]} 8. O-O {[%clk
0:02:50]} 8... Bc5 {[%clk 0:02:19]} 9. Kh1 {[%clk 0:02:45.5]} 9... O-O {[%clk
0:02:04.6]} 10. f4 {[%clk 0:02:43.7]} 10... Nb6 {[%clk 0:02:01.5]} 11. Nd2
{[%clk 0:02:35.3]} 11... f6 {[%clk 0:02:01]} 12. Nf3 {[%clk 0:02:31.4]} 12...
Bg4 {[%clk 0:01:42]} 13. Qe1 {[%clk 0:02:19.5]} 13... Bxf3 {[%clk 0:01:35.2]}
14. Rxf3 {[%clk 0:02:18.8]} 14... fxe5 {[%clk 0:01:35.5]} 15. fxe5 {[%clk
0:02:13]} 15... Rxf3 {[%clk 0:01:34.7]} 16. gxf3 {[%clk 0:02:13.9]} 16... Qf8
{[%clk 0:01:25.7]} 17. Qg3 {[%clk 0:02:07.9]} 17... Re8 {[%clk 0:01:24.1]} 18.
Bd2 {[%clk 0:02:00.5]} 18... Rxe5 {[%clk 0:01:18.4]} 19. Bc3 {[%clk 0:01:42.7]}
19... d4 {[%clk 0:01:07.4]} 20. Bd2 {[%clk 0:01:30.2]} 20... Nd5 {[%clk
0:01:07]} 21. Qxe5 {[%clk 0:01:15]} 21... Qxf3+ {[%clk 0:01:05.5]} 22. Kg1
{[%clk 0:01:15.9]} 22... Ne3 {[%clk 0:01:00.9]} 23. Qe6+ {[%clk 0:01:05.1]}
23... Kh8 {[%clk 0:00:56.1]} 24. Qe8+ {[%clk 0:00:52.6]} 24... Bf8 {[%clk
0:00:54.9]} 25. Bxe3 {[%clk 0:00:52.4]} 25... dxe3 {[%clk 0:00:46]} 26. Rf1
{[%clk 0:00:42.2]} 26... Qg4+ {[%clk 0:00:42.1]} 27. Kh1 {[%clk 0:00:40.3]} 1-0

[Event "*** Titled Tuesday Blitz"]
[Site "Chess.com"]
[Date "2020.10.27"]
[Round "11"]
[White "albano87"]
[Black "TST2014"]
[Result "0-1"]
[WhiteElo "2323"]
[BlackElo "2484"]
[TimeControl "180+1"]
[EndTime "12:04:30 PDT"]
[Termination "TST2014 won by checkmate"]

1. e4 {[%clk 0:02:56.3]} 1... c5 {[%clk 0:02:59.1]} 2. Nf3 {[%clk 0:02:56.6]}
2... Nc6 {[%clk 0:02:58]} 3. d4 {[%clk 0:02:57.3]} 3... cxd4 {[%clk 0:02:58.4]}
4. Nxd4 {[%clk 0:02:58.2]} 4... Nf6 {[%clk 0:02:59]} 5. Nc3 {[%clk 0:02:58.6]}
5... d6 {[%clk 0:02:59.4]} 6. f3 {[%clk 0:02:53.6]} 6... e5 {[%clk 0:02:59.3]}
7. Nb3 {[%clk 0:02:51.5]} 7... Be7 {[%clk 0:02:58.7]} 8. Be3 {[%clk 0:02:48.3]}
8... O-O {[%clk 0:02:58.3]} 9. Qd2 {[%clk 0:02:47.3]} 9... a5 {[%clk 0:02:58.4]}
10. Bb5 {[%clk 0:02:47.1]} 10... Be6 {[%clk 0:02:56.7]} 11. Rd1 {[%clk
0:02:39.3]} 11... Qb8 {[%clk 0:02:49.6]} 12. O-O {[%clk 0:02:35.6]} 12... Rd8
{[%clk 0:02:48.4]} 13. Nd5 {[%clk 0:02:31.5]} 13... Bxd5 {[%clk 0:02:45]} 14.
exd5 {[%clk 0:02:32.4]} 14... a4 {[%clk 0:02:36]} 15. dxc6 {[%clk 0:02:24.3]}
15... axb3 {[%clk 0:02:35.6]} 16. axb3 {[%clk 0:02:24.4]} 16... d5 {[%clk
0:02:29]} 17. Bb6 {[%clk 0:02:13.7]} 17... bxc6 {[%clk 0:02:23.5]} 18. Bxd8
{[%clk 0:02:12.5]} 18... Bc5+ {[%clk 0:02:22.5]} 19. Kh1 {[%clk 0:02:10.8]}
19... Qxb5 {[%clk 0:02:19.7]} 20. Bxf6 {[%clk 0:02:10.4]} 20... gxf6 {[%clk
0:02:20.3]} 21. Qh6 {[%clk 0:02:04.3]} 21... Be7 {[%clk 0:02:14.2]} 22. f4
{[%clk 0:01:55.1]} 22... e4 {[%clk 0:02:13.6]} 23. f5 {[%clk 0:01:55.4]} 23...
Qe2 {[%clk 0:02:03.4]} 24. Rde1 {[%clk 0:01:44.4]} 24... Qg4 {[%clk 0:01:45.9]}
25. Re3 {[%clk 0:01:44]} 25... Bd6 {[%clk 0:00:54.1]} 26. Qxf6 {[%clk
0:01:37.3]} 26... Bf4 {[%clk 0:00:52.2]} 27. Qxc6 {[%clk 0:01:08.9]} 27... Rd8
{[%clk 0:00:42.7]} 28. Rxf4 {[%clk 0:00:54.6]} 28... Qd1+ {[%clk 0:00:40.2]} 29.
Re1 {[%clk 0:00:47.7]} 29... Qxe1+ {[%clk 0:00:40.1]} 30. Rf1 {[%clk 0:00:48.6]}
30... Qxf1# {[%clk 0:00:40.5]} 0-1

[Event "*** Titled Tuesday Blitz"]
[Site "Chess.com"]
[Date "2020.10.27"]
[Round "11"]
[White "YoungUzbek"]
[Black "gilbert_gm"]
[Result "1-0"]
[WhiteElo "2752"]
[BlackElo "2579"]
[TimeControl "180+1"]
[EndTime "12:04:34 PDT"]
[Termination "YoungUzbek won by resignation"]

1. d4 {[%clk 0:03:00.9]} 1... d5 {[%clk 0:02:51.4]} 2. Bg5 {[%clk 0:02:59.9]}
2... c6 {[%clk 0:02:45.1]} 3. Nc3 {[%clk 0:02:52.4]} 3... Nf6 {[%clk 0:02:43.5]}
4. Nf3 {[%clk 0:02:51.1]} 4... Bf5 {[%clk 0:02:38.9]} 5. e3 {[%clk 0:02:50.3]}
5... e6 {[%clk 0:02:31.6]} 6. Bd3 {[%clk 0:02:49.8]} 6... Be7 {[%clk 0:02:26.9]}
7. O-O {[%clk 0:02:49.7]} 7... Nbd7 {[%clk 0:02:18.3]} 8. Ne2 {[%clk 0:02:35.7]}
8... O-O {[%clk 0:02:14]} 9. Ng3 {[%clk 0:02:31.2]} 9... Bg6 {[%clk 0:02:10.1]}
10. Bxg6 {[%clk 0:02:29.1]} 10... hxg6 {[%clk 0:02:11]} 11. c3 {[%clk 0:02:24]}
11... Qb6 {[%clk 0:01:59.2]} 12. Qc2 {[%clk 0:02:21.9]} 12... c5 {[%clk
0:01:49]} 13. Ne5 {[%clk 0:02:19.4]} 13... Rfe8 {[%clk 0:01:39.2]} 14. h4 {[%clk
0:01:43.5]} 14... Rac8 {[%clk 0:01:19]} 15. Qe2 {[%clk 0:01:28.3]} 15... Qc7
{[%clk 0:01:05]} 16. f4 {[%clk 0:01:20.2]} 16... Ne4 {[%clk 0:00:50.3]} 17. Nxe4
{[%clk 0:01:18.5]} 17... dxe4 {[%clk 0:00:51.2]} 18. Bxe7 {[%clk 0:01:17.7]}
18... Rxe7 {[%clk 0:00:49.4]} 19. h5 {[%clk 0:01:17.8]} 19... gxh5 {[%clk
0:00:41.5]} 20. Qxh5 {[%clk 0:01:18.7]} 20... Nf6 {[%clk 0:00:18.2]} 21. Qh3
{[%clk 0:01:05.2]} 21... Nd5 {[%clk 0:00:11.2]} 22. Kf2 {[%clk 0:01:01.3]} 22...
cxd4 {[%clk 0:00:08.3]} 23. Rh1 {[%clk 0:00:58.5]} 23... dxe3+ {[%clk
0:00:08.3]} 24. Kg3 {[%clk 0:00:58.6]} 1-0